bitfinex/quotes_BTCUSD_20251207
["timestamp","ask_amount","ask_price","bid_price","bid_amount"]
[1765123221231,0.2233913,89529.0,89528.0,0.00218782]
[1765123221817,0.23455707,89531.0,89528.0,0.00218782]
[1765123222601,0.02220398,89529.0,89528.0,0.00218782]
[1765123222804,0.2233913,89529.0,89528.0,0.00218782]
[1765123223606,0.23455707,89531.0,89528.0,0.00218782]
[1765123223854,0.23455707,89531.0,89528.0,0.00318782]
[1765123224250,0.23455707,89531.0,89528.0,0.00218782]
[1765123225572,0.01116894,89534.0,89528.0,0.0133575]
[1765123225573,0.23455685,89533.0,89528.0,0.0133575]
[1765123225872,0.22336783,89539.0,89530.0,0.01116944]
[1765123226053,0.01116869,89536.0,89533.0,0.01116906]
[1765123226263,0.23454625,89535.0,89528.0,0.23674953]
[1765123226468,0.01116906,89533.0,89528.0,0.0133575]
[1765123226667,0.018,89538.0,89534.0,0.01116894]
[1765123226871,0.01116781,89543.0,89539.0,0.01116831]
[1765123227197,0.02389095,89568.0,89552.0,0.23449821]
[1765123227435,0.01116619,89556.0,89551.0,0.06229]
[1765123227780,0.01116594,89558.0,89554.0,0.06229]
[1765123228005,0.01116569,89560.0,89555.0,0.01116632]
[1765123228222,0.01116507,89565.0,89558.0,0.01116594]
[1765123228429,0.01116607,89557.0,89551.0,0.01116682]
[1765123228671,0.01116619,89556.0,89552.0,0.01116669]
[1765123228880,0.01116744,89546.0,89541.0,0.01116806]
[1765123229087,0.01116731,89547.0,89543.0,0.01116781]
[1765123229290,0.01116756,89545.0,89542.0,0.03431762]
[1765123229705,0.01216619,89556.0,89548.0,0.22334314]
[1765123229908,0.01116669,89552.0,89547.0,0.01116731]
[1765123230020,0.01116657,89553.0,89550.0,0.01116694]
[1765123230232,0.001,89557.0,89555.0,0.22332485]
[1765123230432,0.001,89557.0,89554.0,0.01116644]
[1765123230646,0.0111652,89564.0,89560.0,0.01116569]
[1765123230902,0.00161287,89564.0,89547.0,0.01116731]
[1765123231107,0.00161287,89564.0,89549.0,0.01116707]
[1765123231108,0.01116619,89556.0,89549.0,0.01116707]
[1765123231358,0.01116644,89554.0,89550.0,0.01116694]
[1765123231495,0.01116619,89556.0,89551.0,0.01116682]
[1765123231694,0.01116619,89556.0,89546.0,0.01116744]
[1765123231695,0.01116682,89551.0,89546.0,0.01116744]
[1765123231895,0.01116657,89553.0,89549.0,0.01116707]
[1765123232120,0.01116644,89554.0,89550.0,0.01116694]
[1765123232320,0.01116619,89556.0,89551.0,0.01116682]
[1765123232525,0.01116669,89552.0,89549.0,0.01116707]
[1765123232724,0.01116619,89556.0,89552.0,0.01116669]
[1765123232924,0.01116594,89558.0,89553.0,0.01116657]
[1765123233129,0.01116607,89557.0,89554.0,0.01116644]
[1765123233341,0.01116594,89558.0,89555.0,0.01116632]
[1765123233489,0.001,89556.0,89554.0,0.01116644]
[1765123233910,0.01116569,89560.0,89555.0,0.01116632]
[1765123234133,0.23448257,89559.0,89554.0,0.01116644]
[1765123234358,0.01116557,89561.0,89557.0,0.01116607]
[1765123234700,0.01116582,89559.0,89555.0,0.01116632]
[1765123234938,0.01116594,89558.0,89554.0,0.01116644]
[1765123235144,0.01116657,89553.0,89550.0,0.01116694]
[1765123235349,0.23450008,89553.0,89546.0,0.10987744]
[1765123235468,0.01099765,89553.0,89548.0,0.01116719]
[1765123235677,0.01116607,89557.0,89553.0,0.01116657]
[1765123235979,0.01116619,89556.0,89553.0,0.01116657]
[1765123236173,0.01116669,89552.0,89548.0,0.01116719]
[1765123236753,0.01116594,89558.0,89551.0,0.29679159]
[1765123236958,0.04823,89549.0,89542.0,0.03431762]
[1765123237081,0.01116682,89551.0,89545.0,0.01116756]
[1765123237277,0.01116682,89551.0,89548.0,0.01116719]
[1765123237528,0.01116682,89551.0,89542.0,0.00011762]
[1765123237529,0.01116744,89546.0,89542.0,0.00011762]
[1765123237707,0.01116744,89546.0,89543.0,0.01116781]
[1765123237899,0.01116719,89548.0,89544.0,0.01116769]
[1765123238100,0.01116632,89555.0,89549.0,0.23450848]
[1765123238303,0.0216039,89555.0,89549.0,0.29679848]
[1765123238582,0.01116569,89560.0,89556.0,0.01116619]
[1765123238790,0.02160307,89559.0,89556.0,0.01116619]
[1765123239232,0.01116582,89559.0,89556.0,0.01116619]
[1765123239433,0.018,89562.0,89559.0,0.01116582]
[1765123239634,0.018,89562.0,89559.0,0.29677064]
[1765123239866,0.22327497,89576.0,89561.0,0.06229]
[1765123240074,0.02159957,89575.0,89570.0,0.01116445]
[1765123240373,0.0111637,89576.0,89570.0,0.01116445]
[1765123240581,0.0111647,89568.0,89564.0,0.0111652]
[1765123240730,0.01116445,89570.0,89566.0,0.01116495]
[1765123240933,0.01116457,89569.0,89565.0,0.01116507]
[1765123241134,0.01116457,89569.0,89564.0,0.0111652]
[1765123241387,0.23445873,89568.0,89565.0,0.00011762]
[1765123241596,0.24550299,89566.0,89565.0,0.00011762]
[1765123241914,0.4059749,89566.0,89565.0,0.00011762]
[1765123242117,0.51149659,89566.0,89565.0,0.00011762]
[1765123242317,0.59805353,89566.0,89565.0,0.00011762]
[1765123242480,0.59805353,89566.0,89521.0,0.03693056]
[1765123242481,0.01116931,89531.0,89521.0,0.03693056]
[1765123242681,0.01116931,89531.0,89528.0,0.00218791]
[1765123243064,0.01116931,89531.0,89528.0,0.01335759]
[1765123243269,0.01116906,89533.0,89528.0,0.23675133]
[1765123243475,0.01116869,89536.0,89532.0,0.01116919]
[1765123243711,0.01116906,89533.0,89530.0,0.01116944]
[1765123243963,0.01116919,89532.0,89528.0,0.01335759]
[1765123244176,0.01116881,89535.0,89530.0,0.01116944]
[1765123244378,0.01116906,89533.0,89529.0,0.01116956]
[1765123244576,0.01116906,89533.0,89532.0,0.001]
[1765123244990,0.23454625,89535.0,89532.0,0.001]
[1765123245199,0.01116931,89531.0,89528.0,0.00218791]
[1765123245409,0.01116881,89535.0,89530.0,0.01116944]
[1765123245615,0.01116806,89541.0,89536.0,0.01116869]
[1765123245824,0.02916806,89541.0,89536.0,0.07642869]
[1765123246019,0.01116831,89539.0,89536.0,0.06526]
[1765123246315,0.22336884,89538.0,89536.0,0.06526]
[1765123246499,0.01116831,89539.0,89536.0,0.06526]
[1765123247116,0.01116894,89534.0,89530.0,0.09108]
[1765123247325,0.01116856,89537.0,89532.0,0.01116919]
[1765123247548,0.01116869,89536.0,89530.0,0.01116944]
[1765123247711,0.01116881,89535.0,89529.0,0.01116956]
[1765123247885,0.01116881,89535.0,89523.0,0.01117031]
[1765123247886,0.22338989,89530.0,89523.0,0.01117031]
[1765123248088,0.22338989,89530.0,89522.0,0.01117043]
[1765123248293,0.22338989,89530.0,89528.0,0.00318791]
[1765123248723,0.22338989,89530.0,89528.0,0.00218791]
[1765123248957,0.01116931,89531.0,89528.0,0.00218791]
[1765123249160,0.2233888,89530.0,89528.0,0.00318791]
[1765123249410,0.01116931,89531.0,89528.0,0.00318791]
[1765123249616,0.01116919,89532.0,89528.0,0.01335759]
[1765123249817,0.2233888,89530.0,89528.0,0.00218791]
[1765123250159,0.03337304,89533.0,89530.0,0.01116944]
[1765123250358,0.01116919,89532.0,89528.0,0.01335759]
[1765123250559,0.2233888,89530.0,89528.0,0.00218791]
[1765123250775,0.06028,89529.0,89528.0,0.00218791]
[1765123250979,0.06189287,89529.0,89528.0,0.00218791]
[1765123251158,0.08409685,89529.0,89528.0,0.00218791]
[1765123251388,0.17918685,89529.0,89528.0,0.00218791]
[1765123251599,0.06189287,89529.0,89528.0,0.00218791]
[1765123251914,0.00161287,89529.0,89528.0,0.00218791]
[1765123252225,0.15698287,89529.0,89528.0,0.00318791]
[1765123252432,0.17918685,89529.0,89528.0,0.00318791]
[1765123252792,0.19621808,89529.0,89528.0,0.00218791]
[1765123252993,0.20665103,89529.0,89528.0,0.00218791]
[1765123253243,0.19621808,89529.0,89528.0,0.00218791]
[1765123253600,0.20664954,89529.0,89528.0,0.00218791]
[1765123254444,0.19621808,89529.0,89528.0,0.00218791]
[1765123254649,0.2066471,89529.0,89528.0,0.00218791]
[1765123254865,0.0366441,89529.0,89528.0,0.00218791]
[1765123255169,0.05984808,89529.0,89528.0,0.00218791]
[1765123255472,0.0979241,89529.0,89528.0,0.00218791]
[1765123255620,0.05884808,89529.0,89528.0,0.00218791]
[1765123255817,0.3022113,89529.0,89528.0,0.00218791]
[1765123256025,0.21521808,89529.0,89528.0,0.00218791]
[1765123259971,0.0376441,89529.0,89528.0,0.00218791]
[1765123260193,0.0196441,89529.0,89528.0,0.00218791]
[1765123260374,0.001,89529.0,89528.0,0.00218791]
[1765123260793,0.001,89529.0,89528.0,0.06770791]
[1765123261019,0.001,89529.0,89528.0,0.16017791]
[1765123261370,0.01116881,89535.0,89530.0,0.01116944]
[1765123261496,0.01116931,89531.0,89528.0,0.01335759]
[1765123261839,0.06327,89529.0,89528.0,0.00218791]
[1765123262205,0.17837398,89529.0,89528.0,0.00218791]
[1765123262859,0.08547398,89529.0,89528.0,0.00218791]
[1765123262991,0.17417,89529.0,89528.0,0.00218791]
[1765123263189,0.018,89529.0,89528.0,0.00218791]
[1765123263772,0.04020398,89529.0,89528.0,0.00218791]
[1765123264212,0.04120398,89529.0,89528.0,0.00218791]
[1765123264454,0.001,89529.0,89528.0,0.00218791]
[1765123264656,0.018,89538.0,89535.0,0.01116881]
[1765123264793,0.018,89538.0,89535.0,0.23454305]
[1765123265206,0.018,89538.0,89533.0,0.01116906]
[1765123265411,0.018,89538.0,89535.0,0.01116881]
[1765123265608,0.02916844,89538.0,89534.0,0.01116894]
[1765123265830,0.01116707,89549.0,89543.0,0.01116781]
[1765123266178,0.01116731,89547.0,89543.0,0.01116781]
[1765123266346,0.01116682,89551.0,89548.0,0.01116719]
[1765123266567,0.01116694,89550.0,89546.0,0.01116744]
[1765123266765,0.01116682,89551.0,89547.0,0.01116731]
[1765123267133,0.01116694,89550.0,89546.0,0.01116744]
[1765123267338,0.01116707,89549.0,89546.0,0.01116744]
[1765123267535,0.01116719,89548.0,89543.0,0.01116781]
[1765123267765,0.01116744,89546.0,89542.0,0.01116794]
[1765123267985,0.01116731,89547.0,89543.0,0.01116781]
[1765123268137,0.01116744,89546.0,89542.0,0.01116794]
[1765123268344,0.01116769,89544.0,89541.0,0.01116806]
[1765123268768,0.23451702,89546.0,89541.0,0.01116806]
[1765123268769,0.01116756,89545.0,89541.0,0.01116806]
[1765123269233,0.01116756,89545.0,89537.0,0.23453967]
[1765123269234,0.01116769,89544.0,89537.0,0.01116856]
[1765123269374,0.01116844,89538.0,89533.0,0.01116906]
[1765123269561,0.01116869,89536.0,89532.0,0.01116919]
[1765123270094,0.01116894,89534.0,89530.0,0.01116944]
[1765123270473,0.01116856,89537.0,89533.0,0.22338132]
[1765123270687,0.22336211,89541.0,89535.0,0.01116881]
[1765123271089,0.01116856,89537.0,89534.0,0.01116894]
[1765123271914,0.01116819,89540.0,89536.0,0.01116869]
[1765123272326,0.01116831,89539.0,89533.0,0.23455038]
[1765123272558,0.01116844,89538.0,89534.0,0.01116894]
[1765123272783,0.04020398,89543.0,89540.0,0.01116819]
[1765123272991,0.04020398,89543.0,89537.0,0.23453817]
[1765123273200,0.04020398,89543.0,89530.0,0.01116944]
[1765123273201,0.01116869,89536.0,89530.0,0.01116944]
[1765123273983,0.01116856,89537.0,89531.0,0.23455531]
[1765123274411,0.01116856,89537.0,89531.0,0.01116931]
[1765123274709,0.26025181,89540.0,89535.0,0.01116881]
[1765123274867,0.01116819,89540.0,89536.0,0.01116869]
[1765123275070,0.01116806,89541.0,89535.0,0.01116881]
[1765123275258,0.01116806,89541.0,89539.0,0.02519]
[1765123276619,0.47242413,89550.0,89539.0,0.02519]
[1765123276620,0.01116682,89551.0,89548.0,0.01116719]
[1765123276961,0.09101,89568.0,89539.0,0.02519]
[1765123276962,0.01116507,89565.0,89558.0,0.01116594]
[1765123277161,0.01116569,89560.0,89557.0,0.01116607]
[1765123277590,0.01116507,89565.0,89559.0,0.0298]
[1765123277808,0.01116532,89563.0,89559.0,0.04096582]
[1765123278122,0.0111652,89564.0,89560.0,0.01116569]
[1765123278266,0.01116532,89563.0,89560.0,0.01116569]
[1765123278466,0.0111652,89564.0,89561.0,0.01116557]
[1765123278666,0.01116482,89567.0,89562.0,0.01116544]
[1765123278904,0.01116495,89566.0,89559.0,0.04108353]
[1765123279079,0.01116544,89562.0,89559.0,0.02991771]
[1765123280309,0.2344746,89562.0,89559.0,0.00011771]
[1765123281113,0.23608747,89562.0,89559.0,0.00011771]
[1765123281483,0.09023685,89560.0,89559.0,0.00011771]
[1765123281694,0.18124685,89560.0,89559.0,0.00011771]
[1765123281907,0.19166784,89560.0,89559.0,0.00011771]
[1765123282056,0.47978784,89560.0,89559.0,0.00011771]
[1765123282377,0.28166286,89560.0,89559.0,0.00011771]
[1765123282526,0.30386684,89560.0,89559.0,0.00011771]
[1765123283948,0.30686684,89560.0,89559.0,0.00011771]
[1765123284394,0.30386684,89560.0,89559.0,0.00011771]
[1765123284898,0.30586684,89560.0,89559.0,0.00011771]
[1765123285115,0.19366784,89560.0,89559.0,0.00011771]
[1765123286031,0.39418303,89560.0,89559.0,0.00011771]
[1765123286199,0.31718984,89560.0,89559.0,0.00011771]
[1765123286583,0.19166784,89560.0,89559.0,0.00011771]
[1765123286766,0.50280984,89560.0,89559.0,0.00011771]
[1765123286971,0.50480984,89560.0,89559.0,0.00011771]
[1765123287302,0.41216984,89560.0,89559.0,0.00011771]
[1765123287510,0.73516984,89560.0,89559.0,0.00011771]
[1765123287753,0.73616984,89560.0,89559.0,0.00011771]
[1765123287954,0.8458749,89560.0,89559.0,0.00011771]
[1765123288155,0.86890701,89560.0,89559.0,0.00011771]
[1765123288856,0.76120195,89560.0,89559.0,0.00011771]
[1765123289820,0.01116931,89531.0,89528.0,0.0020702]
[1765123289990,0.30342528,89529.0,89528.0,0.00218805]
[1765123290333,0.2812213,89529.0,89528.0,0.00218805]
[1765123290534,0.39443528,89529.0,89528.0,0.00218805]
[1765123291197,0.39543528,89529.0,89528.0,0.00218805]
[1765123291645,0.39443528,89529.0,89528.0,0.00218805]
[1765123292660,0.46208441,89529.0,89528.0,0.00218805]
[1765123292852,0.86981138,89529.0,89528.0,0.00218805]
[1765123293184,1.69421977,89529.0,89528.0,0.00318805]
[1765123293447,1.69421977,89529.0,89480.0,0.22351335]
[1765123293448,0.5686402,89511.0,89491.0,0.0298]
[1765123293605,0.59056622,89511.0,89510.0,0.00051787]
[1765123293805,0.24139622,89511.0,89510.0,0.00051787]
[1765123294005,0.34766752,89511.0,89510.0,0.00051787]
[1765123294205,0.38067622,89511.0,89510.0,0.00051787]
[1765123294432,0.4028802,89511.0,89510.0,0.00051787]
[1765123294593,0.7258802,89511.0,89510.0,0.00051787]
[1765123294799,0.7268802,89511.0,89510.0,0.00051787]
[1765123295038,0.73731264,89511.0,89510.0,0.00051787]
[1765123295235,0.7268802,89511.0,89510.0,0.00051787]
[1765123295449,0.7258802,89511.0,89510.0,0.00051787]
[1765123295607,0.73630495,89511.0,89510.0,0.00051787]
[1765123295803,0.79882794,89511.0,89510.0,0.00051787]
[1765123296019,0.908533,89511.0,89510.0,0.00051787]
[1765123296219,0.78840319,89511.0,89510.0,0.00051787]
[1765123296830,0.56439622,89511.0,89510.0,0.00051787]
[1765123297018,0.01796,89511.0,89510.0,0.00051787]
[1765123297722,0.01796,89511.0,89510.0,0.06379787]
[1765123298145,0.01896,89511.0,89510.0,0.06379787]
[1765123298351,0.24239622,89511.0,89510.0,0.00051787]
[1765123298551,0.24139622,89511.0,89510.0,0.00051787]
[1765123298982,0.01796,89511.0,89510.0,0.00051787]
[1765123299193,0.24139622,89511.0,89510.0,0.00051787]
[1765123299386,0.01796,89511.0,89510.0,0.00051787]
[1765123299588,0.24139622,89511.0,89510.0,0.00051787]
[1765123299949,0.2636002,89511.0,89510.0,0.00051787]
[1765123300643,0.2636002,89511.0,89510.0,0.00151787]
[1765123300840,0.24139622,89511.0,89510.0,0.00151787]
[1765123301193,0.48969381,89511.0,89510.0,0.00051787]
[1765123301352,0.39910381,89511.0,89510.0,0.00051787]
[1765123301554,0.26521307,89511.0,89510.0,0.00151787]
[1765123301970,0.01796,89511.0,89510.0,0.00051787]
[1765123302384,0.01896,89511.0,89510.0,0.00051787]
[1765123302886,0.15815,89511.0,89510.0,0.00051787]
[1765123303087,0.22145745,89511.0,89510.0,0.00051787]
[1765123303283,0.08167398,89511.0,89510.0,0.00051787]
[1765123303486,0.03499123,89511.0,89510.0,0.00051787]
[1765123303686,0.05905,89511.0,89510.0,0.00051787]
[1765123304002,0.15877287,89511.0,89510.0,0.00151787]
[1765123304204,0.18097685,89511.0,89510.0,0.00106185]
[1765123304385,0.26847793,89511.0,89510.0,0.00106185]
[1765123304590,0.18197685,89511.0,89510.0,0.00106185]
[1765123305174,0.15877287,89511.0,89510.0,0.00106185]
[1765123305624,0.08286685,89511.0,89510.0,0.00106185]
[1765123305824,0.01957287,89511.0,89510.0,0.00106185]
[1765123306376,0.08579287,89511.0,89510.0,0.00106185]
[1765123306575,0.00161287,89511.0,89510.0,0.00106185]
[1765123306874,0.01896,89511.0,89510.0,0.00106185]
[1765123307286,0.001,89511.0,89510.0,0.06707185]
[1765123307481,0.01796,89516.0,89514.0,0.01117143]
[1765123307682,0.01116919,89532.0,89525.0,0.01117006]
[1765123307956,0.01116981,89527.0,89524.0,0.06601]
[1765123308159,0.02912931,89531.0,89526.0,0.07717993]
[1765123308346,0.01796,89530.0,89527.0,0.07717981]
[1765123308484,0.22338299,89533.0,89529.0,0.01116956]
[1765123308485,0.23455205,89533.0,89529.0,0.01116956]
[1765123308689,0.01116931,89531.0,89527.0,0.09079]
[1765123309040,0.01116956,89529.0,89525.0,0.01117006]
[1765123309275,0.01116968,89528.0,89525.0,0.01117006]
[1765123309460,0.01117006,89525.0,89521.0,0.03693056]
[1765123309621,0.01116981,89527.0,89523.0,0.01117031]
[1765123309817,0.01116993,89526.0,89523.0,0.01117031]
[1765123310042,0.01117006,89525.0,89522.0,0.01117043]
[1765123310364,0.01116993,89526.0,89522.0,0.01117043]
[1765123310945,0.23457462,89524.0,89521.0,0.02576]
[1765123311129,0.2567786,89524.0,89522.0,0.001]
[1765123311535,0.23457462,89524.0,89522.0,0.001]
[1765123311784,0.23457462,89524.0,89521.0,0.02576]
[1765123311975,0.01117156,89513.0,89507.0,0.04097231]
[1765123312153,0.04979,89511.0,89507.0,0.0298]
[1765123312995,0.01117043,89522.0,89515.0,0.01117131]
[1765123313195,0.01117043,89522.0,89516.0,0.22342347]
[1765123313330,0.01117031,89523.0,89521.0,0.02576]
[1765123313548,0.01116956,89529.0,89520.0,0.00024174]
[1765123313753,0.29692811,89521.0,89520.0,0.00024174]
[1765123313971,0.22502413,89521.0,89520.0,0.00024174]
[1765123314374,0.24298413,89521.0,89520.0,0.00024174]
[1765123314584,0.45398712,89521.0,89520.0,0.00024174]
[1765123314782,0.4761911,89521.0,89520.0,0.00024174]
[1765123315154,0.4771911,89521.0,89520.0,0.00024174]
[1765123315355,0.48762237,89521.0,89520.0,0.00024174]
[1765123315712,0.4771911,89521.0,89520.0,0.00024174]
[1765123315946,0.22602413,89521.0,89520.0,0.00024174]
[1765123316211,0.24398413,89521.0,89520.0,0.00024174]
[1765123316451,0.24298413,89521.0,89520.0,0.00024174]
[1765123317009,0.41994004,89521.0,89520.0,0.00024174]
[1765123317232,0.45257799,89521.0,89520.0,0.00024174]
[1765123317440,0.51510098,89521.0,89520.0,0.00024174]
[1765123317876,1.46148019,89511.0,89510.0,0.00051787]
[1765123318123,1.55763832,89511.0,89510.0,0.00051787]
[1765123318338,0.86703032,89511.0,89510.0,0.00051787]
[1765123318539,0.86561328,89511.0,89510.0,0.00051787]
[1765123318754,0.71276227,89511.0,89510.0,0.00051787]
[1765123320311,0.69255829,89511.0,89510.0,0.00051787]
[1765123320581,0.71476227,89511.0,89510.0,0.00051787]
[1765123321461,0.77728526,89511.0,89510.0,0.00051787]
[1765123321715,0.25991829,89511.0,89510.0,0.00051787]
[1765123321930,0.2476402,89511.0,89510.0,0.00051787]
[1765123322107,0.22543622,89511.0,89510.0,0.00051787]
[1765123322317,0.002,89511.0,89510.0,0.15790787]
[1765123322726,0.01117081,89519.0,89514.0,0.01117143]
[1765123322864,0.01117118,89516.0,89513.0,0.01117156]
[1765123323060,0.01117106,89517.0,89513.0,0.01117156]
[1765123323286,0.22343622,89511.0,89510.0,0.00051787]
[1765123323491,0.3291702,89511.0,89510.0,0.00051787]
[1765123323708,0.4122402,89511.0,89510.0,0.00282009]
[1765123324114,0.2636002,89511.0,89510.0,0.00282009]
[1765123324314,0.24139622,89511.0,89510.0,0.00082009]
[1765123324550,0.2636002,89511.0,89510.0,0.00082009]
[1765123324709,0.48945761,89511.0,89510.0,0.00182009]
[1765123324909,0.42268298,89511.0,89510.0,0.00182009]
[1765123325920,0.42268298,89511.0,89510.0,0.00082009]
[1765123326353,0.42429585,89511.0,89510.0,0.00082009]
[1765123327502,0.93555086,89511.0,89510.0,1e-08]
[1765123327694,1.09152344,89511.0,89510.0,1e-08]
[1765123328223,1.13159051,89511.0,89510.0,1e-08]
[1765123328446,1.09152344,89511.0,89510.0,1e-08]
[1765123328666,0.8116784,89511.0,89510.0,1e-08]
[1765123328862,0.97761438,89511.0,89510.0,1e-08]
[1765123329079,0.9554104,89511.0,89510.0,1e-08]
[1765123329299,0.99429291,89511.0,89510.0,1e-08]
[1765123329519,0.98643238,89511.0,89510.0,1e-08]
[1765123329728,0.73319541,89511.0,89510.0,1e-08]
[1765123329910,0.30171939,89511.0,89510.0,1e-08]
[1765123330069,0.23749187,89511.0,89510.0,1e-08]
[1765123330267,0.27765585,89511.0,89510.0,1e-08]
[1765123330518,0.25545187,89511.0,89510.0,1e-08]
[1765123330687,0.27765585,89511.0,89510.0,1e-08]
[1765123331154,0.25545187,89511.0,89510.0,1e-08]
[1765123331291,0.24339622,89511.0,89510.0,1e-08]
[1765123331897,0.24139622,89511.0,89510.0,1e-08]
[1765123332342,0.24139622,89511.0,89510.0,0.00100001]
[1765123332673,0.2636002,89511.0,89510.0,0.00100001]
[1765123333058,0.47763999,89511.0,89510.0,0.00100001]
[1765123333262,0.2636002,89511.0,89510.0,0.00100001]
[1765123333439,0.24139622,89511.0,89510.0,0.00100001]
[1765123334025,0.24139622,89511.0,89510.0,1e-08]
[1765123334907,0.22343622,89511.0,89510.0,1e-08]
[1765123335197,0.24139622,89511.0,89510.0,1e-08]
[1765123335402,0.22341946,89518.0,89512.0,0.01117168]
[1765123335617,0.01117143,89514.0,89511.0,0.01117181]
[1765123335806,0.01117118,89516.0,89515.0,0.06198]
[1765123336427,0.24137381,89520.0,89515.0,0.06198]
[1765123336582,0.24137381,89520.0,89516.0,0.06198]
[1765123336999,0.22342045,89518.0,89516.0,0.06198]
[1765123338045,0.22342045,89518.0,89515.0,0.001]
[1765123338046,0.22342374,89516.0,89515.0,0.001]
[1765123339243,0.23460158,89514.0,89509.0,0.01117206]
[1765123339446,0.01117168,89512.0,89509.0,0.01128997]
[1765123339678,0.01117118,89516.0,89513.0,0.06198]
[1765123339886,0.01117168,89512.0,89509.0,0.00011791]
[1765123340087,0.08082398,89510.0,89509.0,0.00011791]
[1765123340256,0.24139622,89511.0,89509.0,0.00011791]
[1765123340861,0.22343622,89511.0,89509.0,0.00011791]
[1765123341083,0.01796,89510.0,89509.0,0.00011791]
[1765123341256,0.22343622,89511.0,89509.0,0.00011791]
[1765123341648,0.22342873,89514.0,89509.0,0.00011791]
[1765123341649,0.01117143,89514.0,89510.0,0.15995]
[1765123341846,0.22343622,89511.0,89509.0,0.00011791]
[1765123342126,0.01117168,89512.0,89509.0,0.00011791]
[1765123342356,0.01117168,89512.0,89511.0,0.06198]
[1765123343380,0.01117143,89514.0,89511.0,0.06198]
[1765123343585,0.01117118,89516.0,89510.0,0.01117193]
[1765123343586,0.01117118,89516.0,89513.0,0.06198]
[1765123343798,0.01117106,89517.0,89515.0,0.06198]
[1765123343996,0.01117106,89517.0,89516.0,0.06198]
[1765123344229,0.25254792,89519.0,89516.0,0.06198]
[1765123344230,0.25254791,89519.0,89516.0,0.06198]
[1765123344428,0.01796,89519.0,89516.0,0.07315118]
[1765123344632,0.01117043,89522.0,89519.0,0.01117081]
[1765123344828,0.01116931,89531.0,89525.0,0.22340128]
[1765123345088,0.01796,89531.0,89530.0,0.06198]
[1765123345282,0.01116881,89535.0,89532.0,0.01116919]
[1765123345458,0.01796,89536.0,89532.0,0.23455183]
[1765123345663,0.02912869,89536.0,89534.0,0.06198]
[1765123345884,0.01116831,89539.0,89535.0,0.06198]
[1765123346045,0.25249728,89538.0,89535.0,0.06198]
[1765123346480,0.25249728,89538.0,89523.0,0.12345]
[1765123346481,0.01116931,89531.0,89523.0,0.12345]
[1765123346684,0.01117031,89523.0,89509.0,0.01128997]
[1765123346884,0.01117031,89523.0,89509.0,0.00011791]
[1765123347124,0.22341126,89521.0,89509.0,0.00011791]
[1765123347537,0.23460699,89512.0,89509.0,0.00011791]
[1765123347748,0.23460699,89512.0,89510.0,0.02548]
[1765123348299,0.02220398,89510.0,89509.0,0.00011791]
[1765123349152,0.07192398,89510.0,89509.0,0.00011791]
[1765123350278,0.01796,89510.0,89509.0,0.08757791]
[1765123350613,0.01796,89510.0,89509.0,0.02559791]
[1765123351841,0.01896,89510.0,89509.0,0.02559791]
[1765123352461,0.01796,89510.0,89509.0,0.02559791]
[1765123354271,0.04016398,89510.0,89509.0,0.00011791]
[1765123354713,0.01117156,89513.0,89509.0,0.17123997]
[1765123354911,0.22341535,89520.0,89516.0,0.01117118]
[1765123354912,0.23458603,89520.0,89516.0,0.01117118]
[1765123355115,0.01117006,89525.0,89519.0,0.06198]
[1765123355317,0.01796,89521.0,89520.0,0.06198]
[1765123356105,0.2345792,89522.0,89518.0,0.01117093]
[1765123356441,0.2345792,89522.0,89516.0,0.01117118]
[1765123356647,0.01117093,89518.0,89515.0,0.01117131]
[1765123356795,0.01117068,89520.0,89516.0,0.01117118]
[1765123356993,0.01117068,89520.0,89511.0,0.22343545]
[1765123356994,0.01117168,89512.0,89502.0,0.01141475]
[1765123357207,0.25680938,89512.0,89506.0,0.02548]
[1765123358208,0.25680938,89512.0,89502.0,0.00024182]
[1765123358428,0.25680938,89512.0,89506.0,0.02548]
[1765123358769,0.2346054,89512.0,89506.0,0.02548]
[1765123358994,0.07174398,89510.0,89509.0,0.00111791]
[1765123359148,0.07335685,89510.0,89509.0,0.00111791]
[1765123360045,0.14108287,89510.0,89509.0,0.00111791]
[1765123360245,0.19080287,89510.0,89509.0,0.00111791]
[1765123360414,0.12307685,89510.0,89509.0,0.00111791]
[1765123360620,0.53609685,89510.0,89509.0,0.00111791]
[1765123360855,0.60897918,89503.0,89502.0,0.00024182]
[1765123361050,0.2235611,89461.0,89460.0,0.0004]
[1765123361257,0.24576508,89461.0,89460.0,0.00079263]
[1765123361474,0.23473445,89463.0,89460.0,0.00079263]
[1765123361674,0.23473445,89463.0,89460.0,0.0020628]
[1765123361869,0.2235611,89461.0,89460.0,0.00079263]
[1765123362364,0.02913743,89466.0,89460.0,0.00079263]
[1765123362365,0.01796,89466.0,89460.0,0.00079263]
[1765123362566,0.01796,89466.0,89460.0,0.06514263]
[1765123362567,0.01117768,89464.0,89460.0,0.06514263]
[1765123362860,0.01117755,89465.0,89460.0,0.07632081]
[1765123363061,0.23473589,89463.0,89460.0,0.00079263]
[1765123363605,0.0111778,89463.0,89460.0,0.00079263]
[1765123364358,0.23473539,89463.0,89460.0,0.00079263]
[1765123364564,0.01117768,89464.0,89460.0,0.00079263]
[1765123364758,0.2347339,89463.0,89460.0,0.00079263]
[1765123365629,0.0111778,89463.0,89460.0,0.00079263]
[1765123365831,0.0111773,89467.0,89461.0,0.2235611]
[1765123366256,0.01117768,89464.0,89460.0,0.00079263]
[1765123366433,0.2347329,89464.0,89460.0,0.00079263]
[1765123366704,0.0111778,89463.0,89460.0,0.00079263]
[1765123366911,0.01117743,89466.0,89462.0,0.01117793]
[1765123367116,0.0111778,89463.0,89460.0,0.00079263]
[1765123367580,0.23473511,89463.0,89462.0,0.00120966]
[1765123367999,0.0111778,89463.0,89462.0,0.00120966]
[1765123369045,0.0111778,89463.0,89462.0,0.00220966]
[1765123370722,0.0111778,89463.0,89462.0,0.00120966]
[1765123371486,0.15576067,89463.0,89462.0,0.00120966]
[1765123371707,0.05951067,89463.0,89462.0,0.00120966]
[1765123372870,0.15676067,89463.0,89462.0,0.00120966]
[1765123373077,0.06051067,89463.0,89462.0,0.00120966]
[1765123373751,0.08271465,89463.0,89462.0,0.00120966]
[1765123373964,0.06051067,89463.0,89462.0,0.00120966]
[1765123374379,0.08271465,89463.0,89462.0,0.00120966]
[1765123374608,0.06051067,89463.0,89462.0,0.00120966]
[1765123374813,0.0301378,89463.0,89462.0,0.06555966]
[1765123374988,0.01896,89463.0,89462.0,0.00120966]
[1765123375639,0.04016398,89463.0,89462.0,0.00120966]
[1765123375813,0.09147398,89463.0,89462.0,0.00120966]
[1765123376031,0.09147398,89463.0,89462.0,0.00220966]
[1765123376240,0.17215686,89463.0,89462.0,0.00220966]
[1765123376457,0.18777398,89463.0,89462.0,0.00220966]
[1765123377028,0.18777398,89463.0,89462.0,0.00120966]
[1765123377227,0.18938685,89463.0,89462.0,0.00120966]
[1765123378149,0.19038685,89463.0,89462.0,0.00120966]
[1765123378551,0.04277685,89463.0,89462.0,0.00120966]